Workbook

Sheet 附件2
A1: 附件2：
A2: 2024年江门市新增专项债务限额安排项目情况表
M3: 单位：万元
A4: 序号 | B4: 县（市、区） | C4: 项目名称 | D4: 项目单位 | E4: 项目投向领域 | F4: 建设状态 | G4: 项目总投资 | H4: 2024年新增专项债券额度分配金额
H5: 专项债券金额 | I5: 其中：资本金金额 | J5: 其中：
J6: 第1批（提前批） | L6: 第2批（本批次）
J7: 金额 | K7: 其中：资本金金额 | L7: 金额 | M7: 其中：资本金金额
H8: A=C+E | I8: B=D+F | J8: C | K8: D | L8: E | M8: F
A9: 江门市合计（提前批106亿元，第2批61亿元） | G9: =G10+G17+G40+G50+G83+G119+G148+G181 -> 22,584,071 | H9: =H10+H17+H40+H50+H83+H119+H148+H181 -> 1,670,000 | I9: 86,600 | J9: 1,060,000 | K9: 68,300 | L9: 610,000 | M9: 18,300
A10: 江门市本级小计（提前批7亿元，第2批拟不安排） | G10: =SUM(G11:G16) -> 649,882 | H10: =SUM(H11:H16) -> 70,000 | I10: 0 | J10: 70,000 | K10: 0 | L10: 0 | M10: 0
A11: 1 | B11: 江门市本级 | C11: 江门市新三甲医院（市公共卫生临床中心） | D11: 江门市卫生健康局 | E11: 社会事业项目 | F11: 在建项目施工建设中 | G11: 200,000 | H11: 25,000 | I11: 0 | J11: 25,000 | K11: 0 | L11: 0 | M11: 0
A12: 2 | B12: 江门市本级 | C12: 江门市第三人民医院门诊医技综合大楼项目 | D12: 江门市第三人民医院 | E12: 社会事业项目 | F12: 在建项目施工建设中 | G12: 13,998 | H12: 1,600 | I12: 0 | J12: 1,600 | K12: 0 | L12: 0 | M12: 0
A13: 3 | B13: 江门市本级 | C13: 江门市人民医院综合大楼工程项目 | D13: 江门市人民医院 | E13: 社会事业项目 | F13: 在建项目施工建设中 | G13: 24,000 | H13: 2,400 | I13: 0 | J13: 2,400 | K13: 0 | L13: 0 | M13: 0
A14: 4 | B14: 江门市本级 | C14: 江门市中心医院新院区建设项目 | D14: 江门市中心医院 | E14: 社会事业项目 | F14: 在建项目施工建设中 | G14: 330,000 | H14: 23,000 | I14: 0 | J14: 23,000 | K14: 0 | L14: 0 | M14: 0
A15: 5 | B15: 江门市本级 | C15: 江门市保障粮食安全金岭粮库扩建工程 | D15: 江门市粮食直属库 | E15: 仓储物流基础设施项目 | F15: 在建项目施工建设中 | G15: 21,884 | H15: 8,000 | I15: 0 | J15: 8,000 | K15: 0 | L15: 0 | M15: 0
A16: 6 | B16: 江门市本级 | C16: 江门市妇幼保健院儿童健康大楼项目 | D16: 江门市妇幼保健院 | E16: 社会事业项目 | F16: 在建项目施工建设中 | G16: 60,000 | H16: 10,000 | I16: 0 | J16: 10,000 | K16: 0 | L16: 0 | M16: 0
A17: 蓬江区小计（提前批8亿元，第2批5亿元） | G17: =SUM(G18:G39) -> 2,505,849 | H17: =SUM(H18:H39) -> 130,000 | I17: 6,000 | J17: 80,000 | K17: 6,000 | L17: 50,000 | M17: 0
A18: 7 | B18: 蓬江区 | C18: 珠海至肇庆高铁江门至珠三角枢纽机场段（江门市蓬江段） | D18: 江门市蓬江区发展和改革局 | E18: 交通基础设施项目 | F18: 在建项目施工建设中 | G18: 318,500 | H18: 6,000 | I18: 6,000 | J18: 6,000 | K18: 6,000 | L18: 0 | M18: 0
A19: 8 | B19: 蓬江区 | C19: 广东省江门市蓬江区农产品加工流通及预制菜产业园配套项目 | D19: 江门市蓬江区农业农村和水利局 | E19: 农林水利项目 | F19: 在建项目施工建设中 | G19: 63,243 | H19: 5,000 | I19: 0 | J19: 2,000 | K19: 0 | L19: 3,000 | M19: 0
A20: 9 | B20: 蓬江区 | C20: 广东省江门市蓬江区乡村振兴示范带建设项目 | D20: 江门市蓬江区农业农村和水利局 | E20: 农林水利项目 | F20: 在建项目施工建设中 | G20: 37,385 | H20: 2,500 | I20: 0 | J20: 1,500 | K20: 0 | L20: 1,000 | M20: 0
A21: 10 | B21: 蓬江区 | C21: 广东省江门市蓬江区水利管网基础设施项目 | D21: 江门市蓬江区河湖（库）管理中心 | E21: 农林水利项目 | F21: 在建项目施工建设中 | G21: 99,644 | H21: 10,500 | I21: 0 | J21: 5,500 | K21: 0 | L21: 5,000 | M21: 0
A22: 11 | B22: 蓬江区 | C22: 滨江二期环境综合整治及生态保护项目 | D22: 江门市蓬江区政府投资工程建设管理中心 | E22: 生态环保项目 | F22: 在建项目施工建设中 | G22: 197,159 | H22: 8,500 | I22: 0 | J22: 8,500 | K22: 0 | L22: 0 | M22: 0
A23: 12 | B23: 蓬江区 | C23: 蓬江产业转移园扩园提质项目 | D23: 江门市蓬江区政府投资工程建设管理中心 | E23: 市政与产业园区基础设施项目 | F23: 在建项目施工建设中 | G23: 179,621 | H23: 4,800 | I23: 0 | J23: 2,000 | K23: 0 | L23: 2,800 | M23: 0
A24: 13 | B24: 蓬江区 | C24: 江门市蓬江区省级城乡融合试点产业园基础设施建设及配套项目 | D24: 江门市蓬江区政府投资工程建设管理中心 | E24: 市政与产业园区基础设施项目 | F24: 在建项目施工建设中 | G24: 146,800 | H24: 20,200 | I24: 0 | J24: 6,000 | K24: 0 | L24: 14,200 | M24: 0
A25: 14 | B25: 蓬江区 | C25: 珠海-江门大型产业园区蓬江片区基础设施项目 | D25: 江门市蓬江区政府投资工程建设管理中心 | E25: 市政与产业园区基础设施项目 | F25: 在建项目施工建设中 | G25: 188,517 | H25: 7,000 | I25: 0 | J25: 2,000 | K25: 0 | L25: 5,000 | M25: 0
A26: 15 | B26: 蓬江区 | C26: 江门市蓬江区智能家电产业园基础设施项目 | D26: 江门市蓬江区政府投资工程建设管理中心 | E26: 市政与产业园区基础设施项目 | F26: 在建项目施工建设中 | G26: 161,655 | H26: 6,600 | I26: 0 | J26: 5,000 | K26: 0 | L26: 1,600 | M26: 0
A27: 16 | B27: 蓬江区 | C27: 广东省江门市蓬江区高端装备制造产业园配套基础设施项目 | D27: 江门市蓬江区政府投资工程建设管理中心 | E27: 市政与产业园区基础设施项目 | F27: 在建项目施工建设中 | G27: 167,431 | H27: 12,000 | I27: 0 | J27: 8,000 | K27: 0 | L27: 4,000 | M27: 0
A28: 17 | B28: 蓬江区 | C28: 广东省江门市蓬江区新一代信息技术产业园配套项目 | D28: 江门市蓬江区政府投资工程建设管理中心 | E28: 市政与产业园区基础设施项目 | F28: 在建项目施工建设中 | G28: 185,242 | H28: 4,700 | I28: 0 | J28: 3,500 | K28: 0 | L28: 1,200 | M28: 0
A29: 18 | B29: 蓬江区 | C29: 江门人才岛产业园配套基础设施及互联互通项目 | D29: 江门市蓬江区政府投资工程建设管理中心 | E29: 市政与产业园区基础设施项目 | F29: 在建项目施工建设中 | G29: 53,498 | H29: 3,000 | I29: 0 | J29: 3,000 | K29: 0 | L29: 0 | M29: 0
A30: 19 | B30: 蓬江区 | C30: 广东省江门市蓬江区大型产业集聚区启动区基础设施项目 | D30: 江门市蓬江区政府投资工程建设管理中心 | E30: 市政与产业园区基础设施项目 | F30: 在建项目施工建设中 | G30: 86,706 | H30: 8,500 | I30: 0 | J30: 3,500 | K30: 0 | L30: 5,000 | M30: 0
A31: 20 | B31: 蓬江区 | C31: 广东省江门市蓬江区智能家电产业园配套综合提升项目 | D31: 江门市蓬江区政府投资工程建设管理中心 | E31: 市政与产业园区基础设施项目 | F31: 在建项目施工建设中 | G31: 113,285 | H31: 8,000 | I31: 0 | J31: 3,000 | K31: 0 | L31: 5,000 | M31: 0
A32: 21 | B32: 蓬江区 | C32: 江门市蓬江区水环境综合治理项目（一期） | D32: 江门市蓬江区城市管理和综合执法局 | E32: 生态环保项目 | F32: 在建项目施工建设中 | G32: 135,404 | H32: 2,000 | I32: 0 | J32: 2,000 | K32: 0 | L32: 0 | M32: 0
A33: 22 | B33: 蓬江区 | C33: 江门市蓬江区城乡污水治理项目 | D33: 江门市蓬江区城市管理和综合执法局 | E33: 生态环保项目 | F33: 在建项目施工建设中 | G33: 190,364 | H33: 7,500 | I33: 0 | J33: 7,500 | K33: 0 | L33: 0 | M33: 0
A34: 23 | B34: 蓬江区 | C34: 广东省江门市蓬江区智慧停车场建设项目 | D34: 江门市蓬江区城市管理和综合执法局 | E34: 交通基础设施项目 | F34: 在建项目施工建设中 | G34: 36,516 | H34: 3,000 | I34: 0 | J34: 3,000 | K34: 0 | L34: 0 | M34: 0
A35: 24 | B35: 蓬江区 | C35: 广东省江门市蓬江区美丽圩镇建设项目 | D35: 江门市蓬江区住房和城乡建设局 | E35: 农林水利项目 | F35: 在建项目施工建设中 | G35: 13,262 | H35: 2,000 | I35: 0 | J35: 2,000 | K35: 0 | L35: 0 | M35: 0
A36: 25 | B36: 蓬江区 | C36: 南沙港铁路江门段棠下站停车场配套项目 | D36: 江门市蓬江区国有资产监督管理局 | E36: 交通基础设施项目 | F36: 在建项目施工建设中 | G36: 9,457 | H36: 1,000 | I36: 0 | J36: 1,000 | K36: 0 | L36: 0 | M36: 0
A37: 26 | B37: 蓬江区 | C37: 江门市蓬江区应急救治与医疗卫生补短板建设项目 | D37: 江门市蓬江区卫生健康局 | E37: 社会事业项目 | F37: 在建项目施工建设中 | G37: 33,443 | H37: 2,200 | I37: 0 | J37: 1,000 | K37: 0 | L37: 1,200 | M37: 0
A38: 27 | B38: 蓬江区 | C38: 江门市第二人民医院升级改造项目 | D38: 江门市蓬江区卫生健康局 | E38: 社会事业项目 | F38: 在建项目施工建设中 | G38: 13,267 | H38: 1,000 | I38: 0 | J38: 1,000 | K38: 0 | L38: 0 | M38: 0
A39: 28 | B39: 蓬江区 | C39: 广东省江门市蓬江区新能源汽车零配件产业园配套基础设施项目 | D39: 江门市蓬江区政府投资工程建设管理中心 | E39: 市政与产业园区基础设施项目 | F39: 已立项审批但未开工建设 | G39: 75,450 | H39: 4,000 | I39: 0 | J39: 3,000 | K39: 0 | L39: 1,000 | M39: 0
A40: 江海区小计（提前批4亿元，第2批1.5亿元） | G40: =SUM(G41:G49) -> 1,619,064 | H40: =SUM(H41:H49) -> 55,000 | I40: 0 | J40: 40,000 | K40: 0 | L40: 15,000 | M40: 0
A41: 29 | B41: 江海区 | C41: 江门市江海区水环境综合整治项目 | D41: 江门市江海区城市管理和综合执法局 | E41: 生态环保项目 | F41: 在建项目施工建设中 | G41: 82,818 | H41: 1,800 | I41: 0 | J41: 1,800 | K41: 0 | L41: 0 | M41: 0
A42: 30 | B42: 江海区 | C42: 江门高新区生物医药与健康产业园区配套设施建设项目 | D42: 江门市江海区国有资产监督管理局 | E42: 市政与产业园区基础设施项目 | F42: 在建项目施工建设中 | G42: 221,172 | H42: 3,600 | I42: 0 | J42: 3,600 | K42: 0 | L42: 0 | M42: 0
A43: 31 | B43: 江海区 | C43: 江门国家高新区应急产业园区配套设施建设项目 | D43: 江门市江海区住房和城乡建设局 | E43: 市政与产业园区基础设施项目 | F43: 在建项目施工建设中 | G43: 324,013 | H43: 15,065 | I43: 0 | J43: 13,900 | K43: 0 | L43: 1,165 | M43: 0
A44: 32 | B44: 江海区 | C44: 江门高新区高端机电装备制造产业园区基础设施配套项目 | D44: 江门市江海区住房和城乡建设局 | E44: 市政与产业园区基础设施项目 | F44: 在建项目施工建设中 | G44: 387,817 | H44: 3,382 | I44: 0 | J44: 2,300 | K44: 0 | L44: 1,082 | M44: 0
A45: 33 | B45: 江海区 | C45: 江海区社会智慧治理技术创新中心配套设施建设项目 | D45: 江门市江海区国有资产监督管理局 | E45: 市政与产业园区基础设施项目 | F45: 在建项目施工建设中 | G45: 98,786 | H45: 2,500 | I45: 0 | J45: 1,700 | K45: 0 | L45: 800 | M45: 0
A46: 34 | B46: 江海区 | C46: 江门国家高新区智慧产业园区配套设施建设项目 | D46: 江门市江海区国有资产监督管理局 | E46: 市政与产业园区基础设施项目 | F46: 在建项目施工建设中 | G46: 266,366 | H46: 9,200 | I46: 0 | J46: 3,900 | K46: 0 | L46: 5,300 | M46: 0
A47: 35 | B47: 江海区 | C47: 江门市河南片老旧街区改造建设项目 | D47: 江门市江海区住房和城乡建设局 | E47: 保障性安居工程项目 | F47: 在建项目施工建设中 | G47: 54,895 | H47: 4,335 | I47: 0 | J47: 2,000 | K47: 0 | L47: 2,335 | M47: 0
A48: 36 | B48: 江海区 | C48: 广东省深江产业融合发展合作产业园配套设施建设项目 | D48: 江门市江海区住房和城乡建设局 | E48: 市政与产业园区基础设施项目 | F48: 在建项目施工建设中 | G48: 125,514 | H48: 14,048 | I48: 0 | J48: 10,800 | K48: 0 | L48: 3,248 | M48: 0
A49: 37 | B49: 江海区 | C49: 江门市江海区绿色照明创新产业区配套设施建设项目 | D49: 江门市江海区住房和城乡建设局 | E49: 市政与产业园区基础设施项目 | F49: 在建项目施工建设中 | G49: 57,683 | H49: 1,070 | I49: 0 | J49: 0 | K49: 0 | L49: 1,070 | M49: 0
A50: 新会区小计（提前批26亿元，第2批11亿元） | G50: =SUM(G51:G82) -> 6,438,286 | H50: =SUM(H51:H82) -> 370,000 | I50: 27,400 | J50: 260,000 | K50: 27,400 | L50: 110,000 | M50: 0
A51: 38 | B51: 新会区 | C51: 广东省江门市新会装备产业园（罗坑园区）基础配套设施建设工程 | D51: 罗坑镇人民政府 | E51: 市政与产业园区基础设施项目 | F51: 在建项目施工建设中 | G51: 293,569 | H51: 5,600 | I51: - | J51: 5,600 | K51: 0 | L51: 0 | M51: 0
A52: 39 | B52: 新会区 | C52: 广东省江门市新会区乡村振兴示范片区建设项目 | D52: 江门市新会区农业农村局 | E52: 农林水利项目 | F52: 在建项目施工建设中 | G52: 91,507 | H52: 3,000 | I52: - | J52: 3,000 | K52: 0 | L52: 0 | M52: 0
A53: 40 | B53: 新会区 | C53: 广东省江门市新会区崖门渔港产业振兴及基础设施综合提升项目 | D53: 江门市新会区崖门渔港产业发展有限公司 | E53: 农林水利项目 | F53: 在建项目施工建设中 | G53: 27,175 | H53: 2,000 | I53: - | J53: 2,000 | K53: 0 | L53: 0 | M53: 0
A54: 41 | B54: 新会区 | C54: 珠肇高铁珠海至江门段（新会区） | D54: 新会区发展和改革局 | E54: 交通基础设施项目 | F54: 在建项目施工建设中 | G54: 376,975 | H54: 15,400 | I54: 15,400 | J54: 15,400 | K54: 15,400 | L54: 0 | M54: 0
A55: 42 | B55: 新会区 | C55: 广东新会大型产业集聚区新兴产业发展区基础设施项目 | D55: 江门市新会区古井镇人民政府 | E55: 市政与产业园区基础设施项目 | F55: 在建项目施工建设中 | G55: 148,580 | H55: 7,000 | I55: - | J55: 5,000 | K55: 0 | L55: 2,000 | M55: 0
A56: 43 | B56: 新会区 | C56: 广东省江门市新会区2020年老旧小区改造（三期） | D56: 江门市新会区政府投资工程建设管理中心 | E56: 保障性安居工程项目 | F56: 在建项目施工建设中 | G56: 20,834 | H56: 2,300 | I56: - | J56: 2,300 | K56: 0 | L56: 0 | M56: 0
A57: 44 | B57: 新会区 | C57: 广东省江门市银湖湾滨海新区启动区基础设施（一期）项目 | D57: 江门市银湖湾滨海新区投资开发有限公司 | E57: 市政与产业园区基础设施项目 | F57: 在建项目施工建设中 | G57: 346,339 | H57: 23,000 | I57: - | J57: 18,000 | K57: 0 | L57: 5,000 | M57: 0
A58: 45 | B58: 新会区 | C58: 大湾区国际职教城 | D58: 江门市新会文浩教育投资有限公司 | E58: 社会事业项目 | F58: 在建项目施工建设中 | G58: 801,719 | H58: 10,000 | I58: - | J58: 8,000 | K58: 0 | L58: 2,000 | M58: 0
A59: 46 | B59: 新会区 | C59: 广东省江门市银湖湾滨海新区启动区基础设施（二期）项目 | D59: 江门市银湖湾滨海新区投资开发有限公司 | E59: 市政与产业园区基础设施项目 | F59: 在建项目施工建设中 | G59: 87,250 | H59: 10,500 | I59: - | J59: 5,000 | K59: 0 | L59: 5,500 | M59: 0
A60: 47 | B60: 新会区 | C60: 广东省江门市新会区新能源汽车产业基地一期基础设施配套工程 | D60: 江门市新会江睦新能源产业发展有限公司 | E60: 市政与产业园区基础设施项目 | F60: 在建项目施工建设中 | G60: 281,700 | H60: 32,500 | I60: - | J60: 19,500 | K60: 0 | L60: 13,000 | M60: 0
A61: 48 | B61: 新会区 | C61: 广东省江门市江睦双碳产业园基础设施一期项目 | D61: 江门市新会区银洲湖新城开发有限公司 | E61: 市政与产业园区基础设施项目 | F61: 在建项目施工建设中 | G61: 216,853 | H61: 6,000 | I61: - | J61: 5,000 | K61: 0 | L61: 1,000 | M61: 0
A62: 49 | B62: 新会区 | C62: 广东省江门市新会装备产业园大泽园区基础配套设施工程（一期）项目 | D62: 新会大泽装备产业园区开发有限公司 | E62: 市政与产业园区基础设施项目 | F62: 在建项目施工建设中 | G62: 359,847 | H62: 14,000 | I62: - | J62: 8,000 | K62: 0 | L62: 6,000 | M62: 0
A63: 50 | B63: 新会区 | C63: 广东省江门市新会区大泽园区石船山生活配套工程项目 | D63: 江门市新会石船山开发建设有限公司 | E63: 市政与产业园区基础设施项目 | F63: 在建项目施工建设中 | G63: 23,645 | H63: 3,500 | I63: - | J63: 1,000 | K63: 0 | L63: 2,500 | M63: 0
A64: 51 | B64: 新会区 | C64: 广东省江门市新能源动力电池产业园基础设施项目 | D64: 江门市新会司前装备产业园区开发有限公司 | E64: 市政与产业园区基础设施项目 | F64: 在建项目施工建设中 | G64: 206,848 | H64: 19,000 | I64: - | J64: 19,000 | K64: 0 | L64: 0 | M64: 0
A65: 52 | B65: 新会区 | C65: 广东省江门市新会区人民医院传染病防治楼 | D65: 江门市新会区人民医院 | E65: 社会事业项目 | F65: 在建项目施工建设中 | G65: 22,289 | H65: 4,000 | I65: - | J65: 4,000 | K65: 0 | L65: 0 | M65: 0
A66: 53 | B66: 新会区 | C66: 广东省江门市新会珠西新材料集聚区（二、三区）基础配套设施工程 | D66: 江门新会古井珠西新材料集聚区开发有限公司 | E66: 市政与产业园区基础设施项目 | F66: 在建项目施工建设中 | G66: 218,819 | H66: 12,000 | I66: - | J66: 12,000 | K66: 0 | L66: 0 | M66: 0
A67: 54 | B67: 新会区 | C67: 广东省江门市新会区老旧小区改造及周边基础设施改造二期项目 | D67: 江门市新会区住房和城乡建设局 | E67: 保障性安居工程项目 | F67: 在建项目施工建设中 | G67: 31,527 | H67: 1,500 | I67: - | J67: 1,500 | K67: 0 | L67: 0 | M67: 0
A68: 55 | B68: 新会区 | C68: 广东省江门市新会智造产业园基础设施项目 | D68: 江门市新会大泽装备产业园区开发有限公司 | E68: 市政与产业园区基础设施项目 | F68: 在建项目施工建设中 | G68: 501,294 | H68: 104,300 | I68: - | J68: 71,900 | K68: 0 | L68: 32,400 | M68: 0
A69: 56 | B69: 新会区 | C69: 广东省江门市新会区梅江农业生态园及配套设施项目 | D69: 江门市新会区政府投资工程建设管理中心 | E69: 社会事业项目 | F69: 在建项目施工建设中 | G69: 51,858 | H69: 9,600 | I69: - | J69: 5,500 | K69: 0 | L69: 4,100 | M69: 0
A70: 57 | B70: 新会区 | C70: 广东省江门市新会区轨道交通产业园周边基础设施项目 | D70: 江门市新会区政府投资工程建设管理中心 | E70: 市政与产业园区基础设施项目 | F70: 在建项目施工建设中 | G70: 58,198 | H70: 7,000 | I70: - | J70: 2,000 | K70: 0 | L70: 5,000 | M70: 0
A71: 58 | B71: 新会区 | C71: 珠海至肇庆高铁江门至珠三角枢纽机场段（新会区） | D71: 新会区发展和改革局 | E71: 交通基础设施项目 | F71: 在建项目施工建设中 | G71: 571,200 | H71: 12,000 | I71: 12,000 | J71: 12,000 | K71: 12,000 | L71: 0 | M71: 0
A72: 59 | B72: 新会区 | C72: 广东省江门市新会区大鳌镇现代产业集聚区基础设施项目 | D72: 大鳌镇人民政府 | E72: 市政与产业园区基础设施项目 | F72: 在建项目施工建设中 | G72: 117,640 | H72: 4,000 | I72: - | J72: 3,000 | K72: 0 | L72: 1,000 | M72: 0
A73: 60 | B73: 新会区 | C73: 广东省江门市新会区珠西新材料集聚区二期基础配套设施工程 | D73: 江门新会古井珠西新材料集聚区开发有限公司 | E73: 市政与产业园区基础设施项目 | F73: 在建项目施工建设中 | G73: 477,023 | H73: 6,300 | I73: - | J73: 6,300 | K73: 0 | L73: 0 | M73: 0
A74: 61 | B74: 新会区 | C74: 广东省江门市高新区-三江睦洲联动发展先行启动区基础设施项目（一期） | D74: 睦洲镇人民政府 | E74: 市政与产业园区基础设施项目 | F74: 在建项目施工建设中 | G74: 66,360 | H74: 10,000 | I74: - | J74: 10,000 | K74: 0 | L74: 0 | M74: 0
A75: 62 | B75: 新会区 | C75: 广东省江门市新会区农村生活污水处理设施建设工程（四期） | D75: 江门市新会区城市管理和综合执法局 | E75: 农林水利项目 | F75: 在建项目施工建设中 | G75: 43,941 | H75: 13,500 | I75: - | J75: 13,500 | K75: 0 | L75: 0 | M75: 0
A76: 63 | B76: 新会区 | C76: 广东省江门市新会健康食品产业园基础设施建设项目 | D76: 江门市新会区会城街道办事处 | E76: 市政与产业园区基础设施项目 | F76: 在建项目施工建设中 | G76: 235,756 | H76: 4,500 | I76: - | J76: 1,500 | K76: 0 | L76: 3,000 | M76: 0
A77: 64 | B77: 新会区 | C77: 广东省江门市新会装备产业园（罗坑园区）三期基础配套设施建设项目 | D77: 罗坑镇人民政府 | E77: 市政与产业园区基础设施项目 | F77: 在建项目施工建设中 | G77: 34,458 | H77: 5,000 | I77: - | J77: 0 | K77: 0 | L77: 5,000 | M77: 0
A78: 65 | B78: 新会区 | C78: 广东省江门大型产业集聚区新会海工装备产业园基础设施项目 | D78: 崖门镇人民政府 | E78: 市政与产业园区基础设施项目 | F78: 在建项目施工建设中 | G78: 61,649 | H78: 5,000 | I78: - | J78: 0 | K78: 0 | L78: 5,000 | M78: 0
A79: 66 | B79: 新会区 | C79: 广东省江门市新会区污水处理及管网工程二期项目 | D79: 江门市新会区城市管理和综合执法局 | E79: 生态环保项目 | F79: 在建项目施工建设中 | G79: 30,554 | H79: 3,500 | I79: - | J79: 0 | K79: 0 | L79: 3,500 | M79: 0
A80: 67 | B80: 新会区 | C80: 广东省银洲湖纸业基地基础设施一期项目 | D80: 双水镇人民政府 | E80: 市政与产业园区基础设施项目 | F80: 在建项目施工建设中 | G80: 45,727 | H80: 2,000 | I80: 0 | J80: 0 | K80: 0 | L80: 2,000 | M80: 0
A81: 68 | B81: 新会区 | C81: 广东省江门新会省级产业转移工业园粤澳园区二期基础设施项目 | D81: 江门市新会崖门装备产业园区开发有限公司 | E81: 市政与产业园区基础设施项目 | F81: 在建项目施工建设中 | G81: 115,040 | H81: 9,500 | I81: 0 | J81: 0 | K81: 0 | L81: 9,500 | M81: 0
A82: 69 | B82: 新会区 | C82: 广东省江门新会省级产业转移工业园司前园区三期基础设施项目 | D82: 江门市新会司前装备产业园区开发有限公司 | E82: 市政与产业园区基础设施项目 | F82: 在建项目施工建设中 | G82: 472,112 | H82: 2,500 | I82: 0 | J82: 0 | K82: 0 | L82: 2,500 | M82: 0
A83: 台山市小计（提前批16亿元，第2批18亿元（其中已安排11亿元额度项目，剩余7亿元额度待后续补充落实具体项目）） | G83: =SUM(G84:G118) -> 3,190,236 | H83: =SUM(H84:H118) -> 340,000 | I83: 29,600 | J83: 160,000 | K83: 11,300 | L83: 180,000 | M83: 18,300
A84: 70 | B84: 台山市 | C84: 黄茅海跨海通道（江门市） | D84: 台山市交通运输局 | E84: 政府收费公路项目 | F84: 在建项目施工建设中 | G84: 259,696 | H84: 29,600 | I84: 29,600 | J84: 11,300 | K84: 11,300 | L84: 18,300 | M84: 18,300
A85: 71 | B85: 台山市 | C85: 台山市新型城镇化建设示范项目 | D85: 台城街道办事处 | E85: 保障性安居工程项目 | F85: 在建项目施工建设中 | G85: 189,451 | H85: 7,140 | I85: 0 | J85: 1,500 | K85: 0 | L85: 5,640 | M85: 0
A86: 72 | B86: 台山市 | C86: 台山市农村供水改建扩建工程 | D86: 台山市水利局 | E86: 农林水利项目 | F86: 在建项目施工建设中 | G86: 135,880 | H86: 7,500 | I86: 0 | J86: 7,500 | K86: 0 | L86: 0 | M86: 0
A87: 73 | B87: 台山市 | C87: 广东省台山市农村人居环境整治工程 | D87: 台山市水利局 | E87: 农林水利项目 | F87: 在建项目施工建设中 | G87: 48,622 | H87: 2,500 | I87: 0 | J87: 2,500 | K87: 0 | L87: 0 | M87: 0
A88: 74 | B88: 台山市 | C88: 台山市农村环境基础设施提档升级建设项目 | D88: 台山市农业农村局 | E88: 农林水利项目 | F88: 在建项目施工建设中 | G88: 151,458 | H88: 1,000 | I88: 0 | J88: 0 | K88: 0 | L88: 1,000 | M88: 0
A89: 75 | B89: 台山市 | C89: 台山市大湾区农产品冷链物流基础设施配套项目 | D89: 台山大湾企业管理有限公司 | E89: 仓储物流基础设施项目 | F89: 在建项目施工建设中 | G89: 407,800 | H89: 15,000 | I89: 0 | J89: 15,000 | K89: 0 | L89: 0 | M89: 0
A90: 76 | B90: 台山市 | C90: 台山市广海湾工业园区基础设施建设项目 | D90: 广东台山广海湾工业园区管理委员会 | E90: 市政与产业园区基础设施项目 | F90: 在建项目施工建设中 | G90: 125,625 | H90: 13,960 | I90: 0 | J90: 13,200 | K90: 0 | L90: 760 | M90: 0
A91: 77 | B91: 台山市 | C91: 台山市广海镇渔港经济区基础设施建设及周边环境整治提升工程 | D91: 台山市广海镇人民政府 | E91: 农林水利项目 | F91: 在建项目施工建设中 | G91: 102,425 | H91: 20,060 | I91: 0 | J91: 17,600 | K91: 0 | L91: 2,460 | M91: 0
A92: 78 | B92: 台山市 | C92: 台山市大广海湾经贸科技创新基地基础设施项目 | D92: 江门广海湾科创发展有限公司 | E92: 市政与产业园区基础设施项目 | F92: 在建项目施工建设中 | G92: 264,870 | H92: 9,000 | I92: 0 | J92: 9,000 | K92: 0 | L92: 0 | M92: 0
A93: 79 | B93: 台山市 | C93: 台山市海洋牧场基础设施建设项目 | D93: 广东省水产养殖技术推广总站台山分站（台山市远海捕捞大队） | E93: 农林水利项目 | F93: 在建项目施工建设中 | G93: 175,327 | H93: 8,500 | I93: 0 | J93: 8,500 | K93: 0 | L93: 0 | M93: 0
A94: 80 | B94: 台山市 | C94: 台山市职业技术教育迁建工程项目 | D94: 台山市教育局 | E94: 社会事业项目 | F94: 在建项目施工建设中 | G94: 46,999 | H94: 9,550 | I94: 0 | J94: 7,000 | K94: 0 | L94: 2,550 | M94: 0
A95: 81 | B95: 台山市 | C95: 珠海-江门沿海经济带台山大型产业聚集区基础设施及配套工程 | D95: 广东台山广海湾工业园区管理委员会 | E95: 市政与产业园区基础设施项目 | F95: 在建项目施工建设中 | G95: 128,455 | H95: 8,060 | I95: 0 | J95: 7,300 | K95: 0 | L95: 760 | M95: 0
A96: 82 | B96: 台山市 | C96: 台山产城融合基础设施建设 | D96: 台山市交通运输局 | E96: 市政与产业园区基础设施项目 | F96: 在建项目施工建设中 | G96: 445,236 | H96: 6,620 | I96: 0 | J96: 0 | K96: 0 | L96: 6,620 | M96: 0
A97: 83 | B97: 台山市 | C97: 台山市粮食绿色仓储项目 | D97: 台山市国有粮食集团有限公司 | E97: 仓储物流基础设施项目 | F97: 在建项目施工建设中 | G97: 53,241 | H97: 29,800 | I97: 0 | J97: 17,700 | K97: 0 | L97: 12,100 | M97: 0
A98: 84 | B98: 台山市 | C98: 台山市老旧小区改造工程（第二期） | D98: 台城街道办事处 | E98: 保障性安居工程项目 | F98: 在建项目施工建设中 | G98: 14,615 | H98: 3,000 | I98: 0 | J98: 3,000 | K98: 0 | L98: 0 | M98: 0
A99: 85 | B99: 台山市 | C99: 台山市绿美生态建设项目 | D99: 台山市林业局 | E99: 农林水利项目 | F99: 在建项目施工建设中 | G99: 10,228 | H99: 1,200 | I99: 0 | J99: 1,200 | K99: 0 | L99: 0 | M99: 0
A100: 86 | B100: 台山市 | C100: 台山市乡村振兴示范带项目 | D100: 台山市农业农村局 | E100: 农林水利项目 | F100: 在建项目施工建设中 | G100: 33,970 | H100: 12,500 | I100: 0 | J100: 0 | K100: 0 | L100: 12,500 | M100: 0
A101: 87 | B101: 台山市 | C101: 台山市教育高质量发展建设项目 | D101: 台山市教育局 | E101: 社会事业项目 | F101: 在建项目施工建设中 | G101: 7,772 | H101: 3,200 | I101: 0 | J101: 2,400 | K101: 0 | L101: 800 | M101: 0
A102: 88 | B102: 台山市 | C102: 台山市冲蒌镇乡村旅游基础设施建设项目 | D102: 台山市冲蒌镇人民政府 | E102: 社会事业项目 | F102: 在建项目施工建设中 | G102: 9,441 | H102: 1,900 | I102: 0 | J102: 0 | K102: 0 | L102: 1,900 | M102: 0
A103: 89 | B103: 台山市 | C103: 台山市“1+7”产业园区台城至冲蒌先进制造业集聚区基础设施提升项目 | D103: 台山市冲蒌镇人民政府 | E103: 市政与产业园区基础设施项目 | F103: 在建项目施工建设中 | G103: 36,780 | H103: 12,200 | I103: 0 | J103: 11,500 | K103: 0 | L103: 700 | M103: 0
A104: 90 | B104: 台山市 | C104: 台山市三合镇那金工业园区及周边配套基础设施建设工程 | D104: 台山市三合镇人民政府 | E104: 市政与产业园区基础设施项目 | F104: 在建项目施工建设中 | G104: 11,664 | H104: 500 | I104: 0 | J104: 0 | K104: 0 | L104: 500 | M104: 0
A105: 91 | B105: 台山市 | C105: 台山市城区排水内涝及污水处理提质增效综合整治项目 | D105: 台山市城市管理和综合执法局 | E105: 生态环保项目 | F105: 在建项目施工建设中 | G105: 34,604 | H105: 6,200 | I105: 0 | J105: 6,200 | K105: 0 | L105: 0 | M105: 0
A106: 92 | B106: 台山市 | C106: 台山市全域生态文化旅游（一期）配套设施项目 | D106: 台山市新城市基础建设投资有限公司 | E106: 社会事业项目 | F106: 在建项目施工建设中 | G106: 46,900 | H106: 4,150 | I106: 0 | J106: 0 | K106: 0 | L106: 4,150 | M106: 0
A107: 93 | B107: 台山市 | C107: 台山市台城南新区、东区市政给排水基础设施项目 | D107: 台山市新城市基础建设投资有限公司 | E107: 市政与产业园区基础设施项目 | F107: 在建项目施工建设中 | G107: 24,975 | H107: 1,900 | I107: 0 | J107: 0 | K107: 0 | L107: 1,900 | M107: 0
A108: 94 | B108: 台山市 | C108: 台山市产业转移工业园水步片区基础设施建设工程 | D108: 台山市水步镇人民政府 | E108: 市政与产业园区基础设施项目 | F108: 已立项审批但未开工建设 | G108: 10,286 | H108: 3,000 | I108: 0 | J108: 0 | K108: 0 | L108: 3,000 | M108: 0
A109: 95 | B109: 台山市 | C109: 台山工业新城创新产业园区建设项目 | D109: 台城街道办事处 | E109: 市政与产业园区基础设施项目 | F109: 在建项目施工建设中 | G109: 131,834 | H109: 1,950 | I109: 0 | J109: 1,950 | K109: 0 | L109: 0 | M109: 0
A110: 96 | B110: 台山市 | C110: 台山市四九镇乡村振兴基础设施整治项目 | D110: 台山市四九镇人民政府 | E110: 农林水利项目 | F110: 在建项目施工建设中 | G110: 13,908 | H110: 5,150 | I110: 0 | J110: 2,650 | K110: 0 | L110: 2,500 | M110: 0
A111: 97 | B111: 台山市 | C111: 广东（江门）智慧农机产业园（台山大江片区）基础设施提升工程 | D111: 台山市大江镇人民政府 | E111: 市政与产业园区基础设施项目 | F111: 在建项目施工建设中 | G111: 18,452 | H111: 7,200 | I111: 0 | J111: 4,500 | K111: 0 | L111: 2,700 | M111: 0
A112: 98 | B112: 台山市 | C112: 台山市4A级旅游景区—川山群岛景区旅游基础设施建设项目 | D112: 台山市川岛镇人民政府 | E112: 社会事业项目 | F112: 在建项目施工建设中 | G112: 12,160 | H112: 1,500 | I112: 0 | J112: 1,500 | K112: 0 | L112: 0 | M112: 0
A113: 99 | B113: 台山市 | C113: 台山市工业新城西组团（汽车零部件及金属新材料专业园区）基础设施建设项目(首期） | D113: 台山市工业新城管理委员会 | E113: 市政与产业园区基础设施项目 | F113: 在建项目施工建设中 | G113: 24,611 | H113: 5,900 | I113: 0 | J113: 4,000 | K113: 0 | L113: 1,900 | M113: 0
A114: 100 | B114: 台山市 | C114: 台山市工业新城西组团（汽车零部件及金属新材料专业园区）基础设施建设项目（二期） | D114: 台山市城乡建设投资开发有限公司 | E114: 市政与产业园区基础设施项目 | F114: 在建项目施工建设中 | G114: 70,908 | H114: 5,000 | I114: 0 | J114: 3,000 | K114: 0 | L114: 2,000 | M114: 0
A115: 101 | B115: 台山市 | C115: 台山市镇海湾重点流域水环境综合治理鱼塘养殖尾水处理项目 | D115: 广东省水产养殖技术推广总站台山分站（台山市远海捕捞大队） | E115: 生态环保项目 | F115: 已立项审批但未开工建设 | G115: 78,190 | H115: 15,000 | I115: 0 | J115: 0 | K115: 0 | L115: 15,000 | M115: 0
A116: 102 | B116: 台山市 | C116: 广东（江门）智慧农机产业园一期项目 | D116: 台山市清洁能源核电装备产业园有限公司 | E116: 市政与产业园区基础设施项目 | F116: 已立项审批但未开工建设 | G116: 26,883 | H116: 4,800 | I116: 0 | J116: 0 | K116: 0 | L116: 4,800 | M116: 0
A117: 103 | B117: 台山市 | C117: 广东省农产品加工示范区(江门台山)斗山园区基础设施建设项目 | D117: 台山市斗山镇人民政府 | E117: 市政与产业园区基础设施项目 | F117: 已立项审批但未开工建设 | G117: 36,970 | H117: 5,460 | I117: 0 | J117: 0 | K117: 0 | L117: 5,460 | M117: 0
A118: 台山市第2批剩余7亿元额度待后续补充落实安排。 | G118: 0 | H118: 70,000 | I118: 0 | J118: 0 | K118: 0 | L118: 70,000 | M118: 0
A119: 开平市小计（提前批15亿元，批2批12亿元） | G119: =SUM(G120:G147) -> 1,920,436 | H119: =SUM(H120:H147) -> 270,000 | I119: 0 | J119: 150,000 | K119: 0 | L119: 120,000 | M119: 0
A120: 104 | B120: 开平市 | C120: 广东省江门市开平市潭江大道地下停车场及配套设施项目 | D120: 开平市城市管理和综合执法局 | E120: 交通基础设施项目 | F120: 在建项目施工建设中 | G120: 71,206 | H120: 5,000 | I120: 0 | J120: 4,550 | K120: 0 | L120: 450 | M120: 0
A121: 105 | B121: 开平市 | C121: 开平市城镇污水处理及管网工程 | D121: 开平市城市管理和综合执法局 | E121: 生态环保项目 | F121: 在建项目施工建设中 | G121: 112,063 | H121: 10,000 | I121: 0 | J121: 5,000 | K121: 0 | L121: 5,000 | M121: 0
A122: 106 | B122: 开平市 | C122: 开平市城区排水设施提升改造工程 | D122: 开平市城市管理和综合执法局 | E122: 市政与产业园区基础设施项目 | F122: 在建项目施工建设中 | G122: 117,038 | H122: 10,000 | I122: 0 | J122: 3,000 | K122: 0 | L122: 7,000 | M122: 0
A123: 107 | B123: 开平市 | C123: 广东省江门市开平市老旧城区更新改造项目 | D123: 开平市住房和城乡建设局 | E123: 保障性安居工程项目 | F123: 在建项目施工建设中 | G123: 48,617 | H123: 11,000 | I123: 0 | J123: 4,000 | K123: 0 | L123: 7,000 | M123: 0
A124: 108 | B124: 开平市 | C124: 广东省江门市开平市粮食仓储加工及物流项目 | D124: 开平市发展和改革局 | E124: 仓储物流基础设施项目 | F124: 在建项目施工建设中 | G124: 40,085 | H124: 2,500 | I124: 0 | J124: 2,500 | K124: 0 | L124: 0 | M124: 0
A125: 109 | B125: 开平市 | C125: 广东省江门市西江潭江流域跨界重点支流综合治理工程（一期）开平段 | D125: 开平市水资源开发管理中心 | E125: 农林水利项目 | F125: 在建项目施工建设中 | G125: 73,150 | H125: 7,000 | I125: 0 | J125: 6,000 | K125: 0 | L125: 1,000 | M125: 0
A126: 110 | B126: 开平市 | C126: 广东省江门市开平市中心医院整体升级建设项目 | D126: 开平市中心医院 | E126: 社会事业项目 | F126: 在建项目施工建设中 | G126: 16,000 | H126: 4,000 | I126: 0 | J126: 4,000 | K126: 0 | L126: 0 | M126: 0
A127: 111 | B127: 开平市 | C127: 开平市水口医院新建医养结合综合大楼及配套项目 | D127: 开平市水口医院 | E127: 社会事业项目 | F127: 在建项目施工建设中 | G127: 11,957 | H127: 5,000 | I127: 0 | J127: 5,000 | K127: 0 | L127: 0 | M127: 0
A128: 112 | B128: 开平市 | C128: 广东省江门市开平市三埠新港临港产业园区基础设施建设项目 | D128: 开平市三埠街道办事处 | E128: 市政与产业园区基础设施项目 | F128: 在建项目施工建设中 | G128: 119,664 | H128: 20,000 | I128: 0 | J128: 15,000 | K128: 0 | L128: 5,000 | M128: 0
A129: 113 | B129: 开平市 | C129: 广东省江门市开平市开元工业园新区建设项目 | D129: 开平市长沙街道办事处 | E129: 市政与产业园区基础设施项目 | F129: 在建项目施工建设中 | G129: 147,439 | H129: 25,950 | I129: 0 | J129: 16,950 | K129: 0 | L129: 9,000 | M129: 0
A130: 114 | B130: 开平市 | C130: 广东省江门市开平市国际卫浴创新基地建设项目（一期） | D130: 开平市水口镇人民政府 | E130: 市政与产业园区基础设施项目 | F130: 在建项目施工建设中 | G130: 120,250 | H130: 33,000 | I130: 0 | J130: 17,000 | K130: 0 | L130: 16,000 | M130: 0
A131: 115 | B131: 开平市 | C131: 中国水口水暖卫浴生产基地建设项目 | D131: 开平市水口镇人民政府 | E131: 市政与产业园区基础设施项目 | F131: 在建项目施工建设中 | G131: 134,757 | H131: 21,000 | I131: 0 | J131: 10,000 | K131: 0 | L131: 11,000 | M131: 0
A132: 116 | B132: 开平市 | C132: 赤坎新区智慧停车场项目 | D132: 开平市赤坎镇人民政府 | E132: 交通基础设施项目 | F132: 在建项目施工建设中 | G132: 50,000 | H132: 4,000 | I132: 0 | J132: 4,000 | K132: 0 | L132: 0 | M132: 0
A133: 117 | B133: 开平市 | C133: 广东省江门市开平市赤坎古镇周边乡村振兴示范项目 | D133: 开平市赤坎镇人民政府 | E133: 农林水利项目 | F133: 在建项目施工建设中 | G133: 62,500 | H133: 8,000 | I133: 0 | J133: 4,000 | K133: 0 | L133: 4,000 | M133: 0
A134: 118 | B134: 开平市 | C134: 广东省江门市开平市翠山湖生物医药产业专业园基础设施配套项目 | D134: 开平市翠山湖产业转移工业园管理委员会 | E134: 市政与产业园区基础设施项目 | F134: 在建项目施工建设中 | G134: 328,380 | H134: 25,600 | I134: 0 | J134: 11,000 | K134: 0 | L134: 14,600 | M134: 0
A135: 119 | B135: 开平市 | C135: 广东省江门翠山湖高新技术产业开发区基础设施配套项目 | D135: 开平市翠山湖建设发展有限公司 | E135: 市政与产业园区基础设施项目 | F135: 在建项目施工建设中 | G135: 147,208 | H135: 29,550 | I135: 0 | J135: 16,000 | K135: 0 | L135: 13,550 | M135: 0
A136: 120 | B136: 开平市 | C136: 广东省江门市开平市侨梦苑华侨华人创新产业集聚区配套设施建设项目 | D136: 开平市翠山湖建设发展有限公司 | E136: 市政与产业园区基础设施项目 | F136: 在建项目施工建设中 | G136: 34,758 | H136: 2,900 | I136: 0 | J136: 2,000 | K136: 0 | L136: 900 | M136: 0
A137: 121 | B137: 开平市 | C137: 广东省江门市开平市苍城镇胶粘产业专业镇园区配套项目 | D137: 开平市苍城镇人民政府 | E137: 市政与产业园区基础设施项目 | F137: 在建项目施工建设中 | G137: 15,000 | H137: 8,000 | I137: 0 | J137: 5,000 | K137: 0 | L137: 3,000 | M137: 0
A138: 122 | B138: 开平市 | C138: 广东省江门市开平市龙胜新能源汽配示范基地扩园建设项目 | D138: 开平市龙胜镇人民政府 | E138: 市政与产业园区基础设施项目 | F138: 在建项目施工建设中 | G138: 25,000 | H138: 2,000 | I138: 0 | J138: 2,000 | K138: 0 | L138: 0 | M138: 0
A139: 123 | B139: 开平市 | C139: 广东省江门市开平市塘口镇全域土地综合整治试点工程项目 | D139: 开平市塘口镇人民政府 | E139: 农林水利项目 | F139: 在建项目施工建设中 | G139: 46,003 | H139: 3,000 | I139: 0 | J139: 3,000 | K139: 0 | L139: 0 | M139: 0
A140: 124 | B140: 开平市 | C140: 广东省江门市开平市百合镇先进材料产业集群区建设项目 | D140: 开平市百合镇人民政府 | E140: 市政与产业园区基础设施项目 | F140: 在建项目施工建设中 | G140: 29,706 | H140: 5,000 | I140: 0 | J140: 5,000 | K140: 0 | L140: 0 | M140: 0
A141: 125 | B141: 开平市 | C141: 开平市赤水镇水仔口健康食品产业园基础设施配套工程 | D141: 开平市赤水镇人民政府 | E141: 市政与产业园区基础设施项目 | F141: 在建项目施工建设中 | G141: 20,099 | H141: 7,000 | I141: 0 | J141: 5,000 | K141: 0 | L141: 2,000 | M141: 0
A142: 126 | B142: 开平市 | C142: 广东省江门市开平市三埠香山墓园生态园建设项目 | D142: 开平市人民政府三埠街道办事处 | E142: 社会事业项目 | F142: 在建项目施工建设中 | G142: 10,703 | H142: 4,000 | I142: 0 | J142: 0 | K142: 0 | L142: 4,000 | M142: 0
A143: 127 | B143: 开平市 | C143: 广东省江门市开平市水口镇城市停车场项目 | D143: 开平市水口镇人民政府 | E143: 交通基础设施项目 | F143: 已立项审批但未开工建设 | G143: 28,691 | H143: 7,000 | I143: 0 | J143: 0 | K143: 0 | L143: 7,000 | M143: 0
A144: 128 | B144: 开平市 | C144: 广东省江门市开平市百合静脉产业园配套项目 | D144: 开平市百合镇人民政府 | E144: 市政与产业园区基础设施项目 | F144: 在建项目施工建设中 | G144: 10,000 | H144: 1,500 | I144: 0 | J144: 0 | K144: 0 | L144: 1,500 | M144: 0
A145: 129 | B145: 开平市 | C145: 广东省江门市开平市马冈鹅现代农业基础设施配套工程项目 | D145: 开平市马冈镇人民政府 | E145: 市政与产业园区基础设施项目 | F145: 在建项目施工建设中 | G145: 30,001 | H145: 5,000 | I145: 0 | J145: 0 | K145: 0 | L145: 5,000 | M145: 0
A146: 130 | B146: 开平市 | C146: 广东市江门市开平塘口镇世遗文化乡村示范带建设项目 | D146: 开平市塘口镇人民政府 | E146: 农林水利项目 | F146: 在建项目施工建设中 | G146: 38,090 | H146: 2,000 | I146: 0 | J146: 0 | K146: 0 | L146: 2,000 | M146: 0
A147: 131 | B147: 开平市 | C147: 广东市江门市开平市百合镇农村环境综合治理项目 | D147: 开平市百合镇人民政府 | E147: 农林水利项目 | F147: 在建项目施工建设中 | G147: 32,071 | H147: 1,000 | I147: 0 | J147: 0 | K147: 0 | L147: 1,000 | M147: 0
A148: 鹤山市小计（提前批16亿元，第2批7亿元） | G148: =SUM(G149:G180) -> 4,962,850 | H148: =SUM(H149:H180) -> 230,000 | I148: 23,600 | J148: 160,000 | K148: 23,600 | L148: 70,000 | M148: 0
A149: 132 | B149: 鹤山市 | C149: 江门市鹤山省级产业转移工业园5G智慧园区配套设施提升工程 | D149: 鹤山工业城管理委员会 | E149: 市政与产业园区基础设施项目 | F149: 在建项目施工建设中 | G149: 118,500 | H149: 3,000 | I149: 0 | J149: 3,000 | K149: 0 | L149: 0 | M149: 0
A150: 133 | B150: 鹤山市 | C150: 鹤山市中欧雅瑶新兴产业园区（北区）基础设施配套工程一期 | D150: 鹤山市雅瑶镇人民政府 | E150: 市政与产业园区基础设施项目 | F150: 在建项目施工建设中 | G150: 81,278 | H150: 10,000 | I150: 0 | J150: 9,000 | K150: 0 | L150: 1,000 | M150: 0
A151: 134 | B151: 鹤山市 | C151: 鹤山市宅梧镇生态农业产业体系基础设施及配套工程 | D151: 鹤山市宅梧镇人民政府 | E151: 农林水利项目 | F151: 在建项目施工建设中 | G151: 70,000 | H151: 2,000 | I151: 0 | J151: 2,000 | K151: 0 | L151: 0 | M151: 0
A152: 135 | B152: 鹤山市 | C152: 广东省高新技术产业开发区鹤山工业城产城融合高质量发展基础设施配套工程 | D152: 鹤山工业城管理委员会 | E152: 市政与产业园区基础设施项目 | F152: 在建项目施工建设中 | G152: 134,877 | H152: 6,400 | I152: 0 | J152: 6,400 | K152: 0 | L152: 0 | M152: 0
A153: 136 | B153: 鹤山市 | C153: 鹤山市雅瑶产业园区产城融合基础设施配套工程项目 | D153: 鹤山市雅瑶镇人民政府 | E153: 市政与产业园区基础设施项目 | F153: 在建项目施工建设中 | G153: 32,514 | H153: 3,000 | I153: 0 | J153: 3,000 | K153: 0 | L153: 0 | M153: 0
A154: 137 | B154: 鹤山市 | C154: 大湾区珠西物流现代化服务业集聚区一体化（一期）项目 | D154: 鹤山市珠西物流枢纽中心管理委员会 | E154: 市政与产业园区基础设施项目 | F154: 在建项目施工建设中 | G154: 476,900 | H154: 16,000 | I154: 0 | J154: 11,000 | K154: 0 | L154: 5,000 | M154: 0
A155: 138 | B155: 鹤山市 | C155: 珠海至肇庆高铁江门至珠三角枢纽机场段（江门鹤山段） | D155: 鹤山市发展和改革局 | E155: 交通基础设施项目 | F155: 在建项目施工建设中 | G155: 578,400 | H155: 23,600 | I155: 23,600 | J155: 23,600 | K155: 23,600 | L155: 0 | M155: 0
A156: 139 | B156: 鹤山市 | C156: 中欧（江门）中小企业国际合作区新材料产业园配套设施项目 | D156: 鹤山市龙口镇人民政府 | E156: 市政与产业园区基础设施项目 | F156: 在建项目施工建设中 | G156: 133,494 | H156: 9,300 | I156: 0 | J156: 7,000 | K156: 0 | L156: 2,300 | M156: 0
A157: 140 | B157: 鹤山市 | C157: 广东省高新技术产业开发区鹤山工业城基础设施建设工程项目 | D157: 鹤山工业城管理委员会 | E157: 市政与产业园区基础设施项目 | F157: 在建项目施工建设中 | G157: 391,000 | H157: 29,300 | I157: 0 | J157: 29,300 | K157: 0 | L157: 0 | M157: 0
A158: 141 | B158: 鹤山市 | C158: 广东省产业有序转移主平台鹤山市先进装备产业园德胜区基础设施项目 | D158: 鹤山市桃源镇人民政府 | E158: 市政与产业园区基础设施项目 | F158: 已立项审批但未开工建设 | G158: 97,980 | H158: 15,000 | I158: 0 | J158: 10,000 | K158: 0 | L158: 5,000 | M158: 0
A159: 142 | B159: 鹤山市 | C159: 江门鹤山现代物流产业园基础设施项目 | D159: 鹤山市龙口镇人民政府 | E159: 市政与产业园区基础设施项目 | F159: 已立项审批但未开工建设 | G159: 208,396 | H159: 15,000 | I159: 0 | J159: 10,000 | K159: 0 | L159: 5,000 | M159: 0
A160: 143 | B160: 鹤山市 | C160: 鹤山市硅能源产业园区开发及基础设施配套工程项目 | D160: 鹤山市址山镇人民政府 | E160: 市政与产业园区基础设施项目 | F160: 在建项目施工建设中 | G160: 164,301 | H160: 29,200 | I160: 0 | J160: 15,000 | K160: 0 | L160: 14,200 | M160: 0
A161: 144 | B161: 鹤山市 | C161: 鹤山市古劳产业融合高质量发展基础设施提升项目 | D161: 鹤山市古劳镇人民政府 | E161: 市政与产业园区基础设施项目 | F161: 在建项目施工建设中 | G161: 24,976 | H161: 5,000 | I161: 0 | J161: 5,000 | K161: 0 | L161: 0 | M161: 0
A162: 145 | B162: 鹤山市 | C162: 广东省高新技术产业开发区鹤山工业城基础设施综合提升工程项目 | D162: 鹤山工业城管理委员会 | E162: 市政与产业园区基础设施项目 | F162: 在建项目施工建设中 | G162: 37,500 | H162: 3,700 | I162: 0 | J162: 3,700 | K162: 0 | L162: 0 | M162: 0
A163: 146 | B163: 鹤山市 | C163: 鹤山市城镇污水扩容工程 | D163: 鹤山市城市管理和综合执法局 | E163: 生态环保项目 | F163: 在建项目施工建设中 | G163: 94,402 | H163: 5,000 | I163: 0 | J163: 5,000 | K163: 0 | L163: 0 | M163: 0
A164: 147 | B164: 鹤山市 | C164: 鹤山市新兴医疗产业园基础配套工程 | D164: 鹤山市城市管理和综合执法局 | E164: 市政与产业园区基础设施项目 | F164: 在建项目施工建设中 | G164: 289,888 | H164: 2,500 | I164: 0 | J164: 2,500 | K164: 0 | L164: 0 | M164: 0
A165: 148 | B165: 鹤山市 | C165: 鹤山市智谷园区开发及基础设施配套工程项目 | D165: 鹤山市城市管理和综合执法局 | E165: 市政与产业园区基础设施项目 | F165: 已立项审批但未开工建设 | G165: 159,095 | H165: 3,500 | I165: 0 | J165: 3,500 | K165: 0 | L165: 0 | M165: 0
A166: 149 | B166: 鹤山市 | C166: 鹤山市桃源镇产业园区基础设施及配套建设项目 | D166: 鹤山市桃源镇人民政府 | E166: 市政与产业园区基础设施项目 | F166: 在建项目施工建设中 | G166: 90,600 | H166: 5,500 | I166: 0 | J166: 3,000 | K166: 0 | L166: 2,500 | M166: 0
A167: 150 | B167: 鹤山市 | C167: 广东省产业有序转移主平台鹤山市先进装备产业园基础设施建设项目 | D167: 鹤山市桃源镇人民政府 | E167: 市政与产业园区基础设施项目 | F167: 已立项审批但未开工建设 | G167: 146,000 | H167: 1,000 | I167: 0 | J167: 1,000 | K167: 0 | L167: 0 | M167: 0
A168: 151 | B168: 鹤山市 | C168: 鹤山西站产业园区基础设施及配套工程 | D168: 鹤山市桃源镇人民政府 | E168: 市政与产业园区基础设施项目 | F168: 在建项目施工建设中 | G168: 268,840 | H168: 2,500 | I168: 0 | J168: 1,000 | K168: 0 | L168: 1,500 | M168: 0
A169: 152 | B169: 鹤山市 | C169: 鹤山市水利基础设施建设及配套基础设施提升工程 | D169: 鹤山市水利局 | E169: 农林水利项目 | F169: 在建项目施工建设中 | G169: 48,028 | H169: 5,800 | I169: 0 | J169: 5,000 | K169: 0 | L169: 800 | M169: 0
A170: 153 | B170: 鹤山市 | C170: 中国水暖卫浴五金生产基地址山园区基础设施提升项目 | D170: 鹤山市址山镇人民政府 | E170: 市政与产业园区基础设施项目 | F170: 已立项审批但未开工建设 | G170: 48,000 | H170: 1,000 | I170: 0 | J170: 1,000 | K170: 0 | L170: 0 | M170: 0
A171: 154 | B171: 鹤山市 | C171: 鹤山市中欧雅瑶新兴产业园区（南区）基础设施配套工程一期 | D171: 鹤山市雅瑶镇人民政府 | E171: 市政与产业园区基础设施项目 | F171: 已立项审批但未开工建设 | G171: 62,850 | H171: 5,000 | I171: 0 | J171: 0 | K171: 0 | L171: 5,000 | M171: 0
A172: 155 | B172: 鹤山市 | C172: 江门市（鹤山）精细化工产业园（扩园）基础配套设施建设项目 | D172: 鹤山市龙口镇人民政府 | E172: 市政与产业园区基础设施项目 | F172: 在建项目施工建设中 | G172: 223,000 | H172: 4,500 | I172: 0 | J172: 0 | K172: 0 | L172: 4,500 | M172: 0
A173: 156 | B173: 鹤山市 | C173: 广东省产业有序转移主平台—江门硅能源产业基地基础设施项目 | D173: 鹤山市址山镇人民政府 | E173: 市政与产业园区基础设施项目 | F173: 已立项审批但未开工建设 | G173: 322,590 | H173: 5,000 | I173: 0 | J173: 0 | K173: 0 | L173: 5,000 | M173: 0
A174: 157 | B174: 鹤山市 | C174: 广东省产业有序转移主平台—江门中欧现代农业产业园区基础设施项目 | D174: 鹤山市鹤城镇人民政府 | E174: 市政与产业园区基础设施项目 | F174: 已立项审批但未开工建设 | G174: 378,890 | H174: 10,000 | I174: 0 | J174: 0 | K174: 0 | L174: 10,000 | M174: 0
A175: 158 | B175: 鹤山市 | C175: 鹤山市沙坪乡村振兴农村人居环境整治项目 | D175: 鹤山市沙坪街道办事处 | E175: 农林水利项目 | F175: 在建项目施工建设中 | G175: 74,674 | H175: 2,200 | I175: 0 | J175: 0 | K175: 0 | L175: 2,200 | M175: 0
A176: 159 | B176: 鹤山市 | C176: 鹤山市沙坪康养服务中心项目 | D176: 鹤山市沙坪街道办事处 | E176: 社会事业项目 | F176: 在建项目施工建设中 | G176: 19,800 | H176: 3,000 | I176: 0 | J176: 0 | K176: 0 | L176: 3,000 | M176: 0
A177: 160 | B177: 鹤山市 | C177: 江门市鹤山省级产业转移工业园龙湾园产城融合环境提升工程 | D177: 鹤山市址山镇人民政府 | E177: 市政与产业园区基础设施项目 | F177: 在建项目施工建设中 | G177: 38,000 | H177: 600 | I177: 0 | J177: 0 | K177: 0 | L177: 600 | M177: 0
A178: 161 | B178: 鹤山市 | C178: 鹤山市城市智慧停车场及配套设施工程 | D178: 鹤山市城市管理和综合执法局 | E178: 交通基础设施项目 | F178: 在建项目施工建设中 | G178: 89,064 | H178: 1,000 | I178: 0 | J178: 0 | K178: 0 | L178: 1,000 | M178: 0
A179: 162 | B179: 鹤山市 | C179: 江门市鹤山省级产业转移工业园鹤城园基础设施提升工程 | D179: 鹤山市鹤城镇人民政府 | E179: 市政与产业园区基础设施项目 | F179: 在建项目施工建设中 | G179: 28,000 | H179: 700 | I179: 0 | J179: 0 | K179: 0 | L179: 700 | M179: 0
A180: 163 | B180: 鹤山市 | C180: 鹤山市鹤城镇产业园区基础设施工程 | D180: 鹤山市鹤城镇人民政府 | E180: 市政与产业园区基础设施项目 | F180: 在建项目施工建设中 | G180: 31,013 | H180: 700 | I180: 0 | J180: 0 | K180: 0 | L180: 700 | M180: 0
A181: 恩平市小计（提前批14亿元，第2批6.5亿元） | G181: =SUM(G182:G203) -> 1,297,469 | H181: =SUM(H182:H203) -> 205,000 | I181: 0 | J181: 140,000 | K181: 0 | L181: 65,000 | M181: 0
A182: 164 | B182: 恩平市 | C182: 恩平产业转移工业园大田片区基础设施配套项目 | D182: 恩平产业转移工业园管理委员会 | E182: 市政与产业园区基础设施项目 | F182: 在建项目施工建设中 | G182: 29,926 | H182: 10,000 | I182: 0 | J182: 9,000 | K182: 0 | L182: 1,000 | M182: 0
A183: 165 | B183: 恩平市 | C183: 恩平产业转移工业园基础设施和配套工程建设项目 | D183: 恩平产业转移工业园管理委员会 | E183: 市政与产业园区基础设施项目 | F183: 在建项目施工建设中 | G183: 105,600 | H183: 20,500 | I183: 0 | J183: 8,500 | K183: 0 | L183: 12,000 | M183: 0
A184: 166 | B184: 恩平市 | C184: 广东省恩平市老旧小区改造项目（三期） | D184: 恩平市住房和城乡建设局 | E184: 社会事业项目 | F184: 在建项目施工建设中 | G184: 79,729 | H184: 8,500 | I184: 0 | J184: 6,000 | K184: 0 | L184: 2,500 | M184: 0
A185: 167 | B185: 恩平市 | C185: 广东省恩平市锦江河综合治理项目 | D185: 恩平市水利工程建设服务中心 | E185: 农林水利项目 | F185: 在建项目施工建设中 | G185: 64,663 | H185: 6,000 | I185: 0 | J185: 6,000 | K185: 0 | L185: 0 | M185: 0
A186: 168 | B186: 恩平市 | C186: 广东省恩平市农田整治项目 | D186: 恩平市农业农村局 | E186: 农林水利项目 | F186: 在建项目施工建设中 | G186: 34,932 | H186: 4,300 | I186: 0 | J186: 4,300 | K186: 0 | L186: 0 | M186: 0
A187: 169 | B187: 恩平市 | C187: 广东省恩平市产城融合基础设施建设项目 | D187: 江门产业转移工业园恩平园区管理委员会 | E187: 市政与产业园区基础设施项目 | F187: 在建项目施工建设中 | G187: 66,256 | H187: 6,500 | I187: 0 | J187: 6,500 | K187: 0 | L187: 0 | M187: 0
A188: 170 | B188: 恩平市 | C188: 广东省恩平市人民医院改建扩建工程建设项目 | D188: 恩平市人民医院 | E188: 社会事业项目 | F188: 在建项目施工建设中 | G188: 26,000 | H188: 4,000 | I188: 0 | J188: 4,000 | K188: 0 | L188: 0 | M188: 0
A189: 171 | B189: 恩平市 | C189: 恩平市学前教育基础设施提升工程建设项目（二期） | D189: 恩平市教育局 | E189: 社会事业项目 | F189: 在建项目施工建设中 | G189: 11,171 | H189: 2,900 | I189: 0 | J189: 2,600 | K189: 0 | L189: 300 | M189: 0
A190: 172 | B190: 恩平市 | C190: 恩平市锦江新城北区停车场及周边配套建设工程 | D190: 恩平市城市管理和综合执法局 | E190: 社会事业项目 | F190: 在建项目施工建设中 | G190: 16,848 | H190: 1,500 | I190: 0 | J190: 1,500 | K190: 0 | L190: 0 | M190: 0
A191: 173 | B191: 恩平市 | C191: 广东省恩平市水利工程补短板项目 | D191: 恩平市水利局 | E191: 农林水利项目 | F191: 在建项目施工建设中 | G191: 167,504 | H191: 4,000 | I191: 0 | J191: 4,000 | K191: 0 | L191: 0 | M191: 0
A192: 174 | B192: 恩平市 | C192: 广东省恩平市宝昌工业园基础设施配套项目 | D192: 恩平市牛江镇人民政府 | E192: 市政与产业园区基础设施项目 | F192: 在建项目施工建设中 | G192: 43,946 | H192: 7,600 | I192: 0 | J192: 5,000 | K192: 0 | L192: 2,600 | M192: 0
A193: 175 | B193: 恩平市 | C193: 广东省恩平市镇海湾区供水工程及生态海堤建设项目 | D193: 恩平市水利局 | E193: 农林水利项目 | F193: 在建项目施工建设中 | G193: 59,914 | H193: 3,000 | I193: 0 | J193: 3,000 | K193: 0 | L193: 0 | M193: 0
A194: 176 | B194: 恩平市 | C194: 恩平市中心城区东部片区排水设施提升工程 | D194: 恩平市城市管理和综合执法局 | E194: 生态环保项目 | F194: 在建项目施工建设中 | G194: 15,241 | H194: 6,000 | I194: 0 | J194: 5,000 | K194: 0 | L194: 1,000 | M194: 0
A195: 177 | B195: 恩平市 | C195: 广东省恩平市2022年农村水利提升工程 | D195: 恩平市水利局 | E195: 农林水利项目 | F195: 在建项目施工建设中 | G195: 24,565 | H195: 2,000 | I195: 0 | J195: 2,000 | K195: 0 | L195: 0 | M195: 0
A196: 178 | B196: 恩平市 | C196: 恩平工业园职教园区项目 | D196: 恩平产业转移工业园管理委员会 | E196: 市政与产业园区基础设施项目 | F196: 在建项目施工建设中 | G196: 175,000 | H196: 40,000 | I196: 0 | J196: 35,600 | K196: 0 | L196: 4,400 | M196: 0
A197: 179 | B197: 恩平市 | C197: 广东省恩平市体育设施建设项目 | D197: 恩平市城市管理和综合执法局 | E197: 社会事业项目 | F197: 在建项目施工建设中 | G197: 27,051 | H197: 8,000 | I197: 0 | J197: 8,000 | K197: 0 | L197: 0 | M197: 0
A198: 180 | B198: 恩平市 | C198: 恩平工业园高质量发展基础设施建设项目 | D198: 恩平产业转移工业园管理委员会 | E198: 市政与产业园区基础设施项目 | F198: 在建项目施工建设中 | G198: 123,392 | H198: 21,700 | I198: 0 | J198: 9,000 | K198: 0 | L198: 12,700 | M198: 0
A199: 181 | B199: 恩平市 | C199: 广东省恩平市产城融合基础设施建设项目（二期） | D199: 恩平产业转移工业园管理委员会 | E199: 市政与产业园区基础设施项目 | F199: 在建项目施工建设中 | G199: 94,487 | H199: 20,000 | I199: 0 | J199: 20,000 | K199: 0 | L199: 0 | M199: 0
A200: 182 | B200: 恩平市 | C200: 恩平市老旧小区改造（2023-2024）项目 | D200: 恩平市住房和城乡建设局 | E200: 社会事业项目 | F200: 在建项目施工建设中 | G200: 17,717 | H200: 7,000 | I200: 0 | J200: 0 | K200: 0 | L200: 7,000 | M200: 0
... 3 more rows
